fUSD/lending_fUSD_20250226
["ID","MTS","AMOUNT","RATE_DAILY","PERIOD"]
[354573215,1740579057923,-734.41,0.00039175,14]
[354573216,1740579057933,-500.0,0.00039175,14]
[354573217,1740579057943,-500.0,0.00039175,14]
[354573218,1740579057953,-629.86,0.00039175,14]
[354573219,1740579057963,-500.0,0.00039175,14]
[354573220,1740579057972,-611.23,0.00039175,14]
[354573221,1740579057982,-657.24,0.00039175,14]
[354573222,1740579057991,-967.67,0.00039175,14]
[354573223,1740579058001,-1297.29,0.00039175,14]
[354573224,1740579058010,-2160.04,0.00039175,14]
[354573225,1740579058020,-687.1,0.00039175,14]
[354573226,1740579058029,-1405.07,0.00039175,14]
[354573227,1740579058042,-500.0,0.00039175,14]
[354573228,1740579058051,-1312.8,0.00039175,14]
[354573229,1740579058061,-574.68,0.00039175,14]
[354573230,1740579058071,-1566.69,0.00039175,14]
[354573231,1740579058080,-1850.36,0.00039175,14]
[354573232,1740579058090,-2688.95,0.00039175,14]
[354573233,1740579058099,-500.0,0.00039175,14]
[354573234,1740579058109,-634.52,0.00039175,14]
[354573235,1740579058118,-500.0,0.00039175,14]
[354573236,1740579058128,-2639.65,0.00039175,14]
[354573237,1740579058138,-1346.1,0.00039175,14]
[354573238,1740579058151,-597.82,0.00039175,14]
[354573239,1740579058161,-500.0,0.00039175,14]
[354573240,1740579058171,-783.94,0.00039175,14]
[354573241,1740579058181,-1875.46,0.00039175,14]
[354573242,1740579058193,-500.0,0.00039175,14]
[354573243,1740579058203,-3302.05,0.00039175,14]
[354573244,1740579058213,-500.0,0.00039175,14]
[354573245,1740579058224,-1299.24,0.00039175,14]
[354573246,1740579058234,-10982.95,0.00039175,14]
[354573247,1740579058244,-500.0,0.00039175,14]
[354573248,1740579058254,-992.48,0.00039175,14]
[354573249,1740579058264,-1002.34,0.00039175,14]
[354573250,1740579058273,-500.0,0.00039175,14]
[354573251,1740579058282,-500.0,0.00039175,14]
[354573252,1740579058292,-2956.75,0.00039175,14]
[354573253,1740579058303,-1260.8,0.00039175,14]
[354573254,1740579058317,-867.41,0.00039175,14]
[354573255,1740579058328,-947.35,0.00039175,14]
[354573256,1740579058339,-770.05,0.00039175,14]
[354573257,1740579058350,-1081.94,0.00039175,14]
[354573258,1740579058361,-1321.65,0.00039175,14]
[354573259,1740579058372,-500.0,0.00039175,14]
[354573260,1740579058383,-2800.68,0.00039175,14]
[354573261,1740579058394,-546.52,0.00039175,14]
[354573262,1740579058405,-534.66,0.00039175,14]
[354573263,1740579058415,-500.0,0.00039175,14]
[354573264,1740579058425,-736.78,0.00039175,14]
[354573265,1740579058435,-500.0,0.00039175,14]
[354573266,1740579058445,-504.24,0.00039175,14]
[354573267,1740579058455,-500.0,0.00039175,14]
[354573268,1740579058465,-9015.06,0.00039175,14]
[354573269,1740579058475,-836.99,0.00039175,14]
[354573270,1740579058484,-723.81,0.00039175,14]
[354573271,1740579058495,-500.0,0.00039175,14]
[354573272,1740579058504,-313.70136595,0.00039176,14]
[354573273,1740579058514,-515.9,0.00039176,14]
[354573274,1740579058524,-500.0,0.00039176,14]
[354573275,1740579058533,-1834.5,0.00039176,14]
[354573276,1740579058543,-500.0,0.00039176,14]
[354573277,1740579058553,-944.67,0.00039176,14]
[354573278,1740579058566,-500.0,0.00039176,14]
[354573279,1740579058575,-791.73,0.00039176,14]
[354573280,1740579058584,-820.02,0.00039176,14]
[354573281,1740579058594,-500.0,0.00039176,14]
[354573282,1740579058603,-1056.64,0.00039176,14]
[354573283,1740579058613,-1537.93,0.00039176,14]
[354573284,1740579058625,-1621.59,0.00039176,14]
[354573285,1740579058635,-500.0,0.00039176,14]
[354573286,1740579058645,-1394.71,0.00039176,14]
[354573287,1740579058655,-2100.0,0.00039176,14]
[354573288,1740579058665,-500.0,0.00039176,14]
[354573289,1740579058675,-500.0,0.00039176,14]
[354573290,1740579058684,-500.0,0.00039176,14]
[354573291,1740579058694,-500.0,0.00039176,14]
[354573292,1740579058704,-828.74,0.00039176,14]
[354573293,1740579058714,-955.28,0.00039176,14]
[354573294,1740579058724,-500.0,0.00039176,14]
[354573295,1740579058733,-835.57,0.00039176,14]
[354573296,1740579058743,-855.53,0.00039176,14]
[354573297,1740579058753,-1301.61,0.00039176,14]
[354573298,1740579058763,-989.03,0.00039176,14]
[354573299,1740579058773,-1283.55,0.00039176,14]
[354573300,1740579058785,-2008.44,0.00039176,14]
[354573301,1740579058795,-1982.32,0.00039176,14]
[354573302,1740579058806,-1390.29,0.00039176,14]
[354573303,1740579058820,-1560.11,0.00039176,14]
[354573304,1740579058831,-500.0,0.00039176,14]
[354573305,1740579058840,-2225.85,0.00039176,14]
[354573306,1740579058851,-1144.79,0.00039176,14]
[354573307,1740579058861,-3889.48,0.00039176,14]
[354573308,1740579058871,-1958.29,0.00039176,14]
[354573309,1740579058882,-2543.92,0.00039176,14]
[354573310,1740579058892,-1610.63,0.00039176,14]
[354573311,1740579058903,-1123.89,0.00039176,14]
[354573312,1740579058913,-1055.64,0.00039176,14]
[354573313,1740579058923,-1811.37,0.00039176,14]
[354573314,1740579058933,-525.88,0.00039176,14]
[354573315,1740579058944,-1185.45,0.00039176,14]
[354573316,1740579058954,-3527.89,0.00039176,14]
[354573317,1740579058964,-1586.84,0.00039176,14]
[354573318,1740579058973,-1273.45,0.00039176,14]
[354573319,1740579058984,-667.39,0.00039176,14]
[354573320,1740579058993,-1601.72,0.00039176,14]
[354573321,1740579059003,-632.18,0.00039176,14]
[354573322,1740579059012,-500.0,0.00039176,14]
[354573323,1740579059021,-633.32,0.00039176,14]
[354573324,1740579059031,-500.0,0.00039176,14]
[354573325,1740579059039,-1548.06,0.00039176,14]
[354573326,1740579059049,-1351.63,0.00039176,14]
[354573327,1740579059059,-1613.65,0.00039176,14]
[354573328,1740579059073,-500.0,0.00039176,14]
[354573329,1740579059083,-500.0,0.00039177,14]
[354573330,1740579059092,-500.0,0.00039177,14]
[354573331,1740579059103,-574.03,0.00039177,14]
[354573332,1740579059112,-583.56,0.00039177,14]
[354573333,1740579059122,-919.11,0.00039177,14]
[354573334,1740579059131,-500.0,0.00039177,14]
[354573335,1740579059142,-500.0,0.00039177,14]
[354573336,1740579059152,-500.0,0.00039177,14]
[354573337,1740579059164,-500.0,0.00039177,14]
[354573338,1740579059176,-500.0,0.00039177,14]
[354573339,1740579059186,-500.0,0.00039177,14]
[354573340,1740579059195,-856.74,0.00039177,14]
[354573341,1740579059204,-708.53,0.00039177,14]
[354573342,1740579059216,-687.98,0.00039177,14]
[354573343,1740579059226,-500.0,0.00039177,14]
[354573344,1740579059236,-500.0,0.00039177,14]
[354573345,1740579059246,-1224.09,0.00039177,14]
[354573346,1740579059256,-500.0,0.00039177,14]
[354573347,1740579059265,-642.92,0.00039177,14]
[354573348,1740579059275,-500.0,0.00039177,14]
[354573349,1740579059284,-500.0,0.00039177,14]
[354573350,1740579059294,-500.0,0.00039177,14]
[354573351,1740579059303,-500.0,0.00039177,14]
[354573352,1740579059312,-1378.47,0.00039177,14]
[354573353,1740579059322,-525.37,0.00039177,14]
[354573354,1740579059332,-667.25,0.00039177,14]
[354573355,1740579059342,-1101.68,0.00039177,14]
[354573356,1740579059351,-1827.21,0.00039177,14]
[354573357,1740579059361,-500.0,0.00039177,14]
[354573358,1740579059370,-500.0,0.00039177,14]
[354573359,1740579059380,-500.0,0.00039177,14]
[354573360,1740579059390,-500.0,0.00039177,14]
[354573361,1740579059400,-500.0,0.00039177,14]
[354573362,1740579059409,-1293.28,0.00039177,14]
[354573363,1740579059419,-501.66,0.00039177,14]
[354573364,1740579059429,-595.35,0.00039177,14]
[354573365,1740579059438,-1402.84,0.00039177,14]
[354573366,1740579059449,-500.0,0.00039177,14]
[354573367,1740579059460,-1106.24,0.00039177,14]
[354573368,1740579059469,-735.16,0.00039177,14]
[354573369,1740579059479,-1672.09,0.00039177,14]
[354573370,1740579059488,-526.93005664,0.00039177,14]
[354573371,1740579059497,-500.0,0.00039177,14]
[354573372,1740579059507,-858.59,0.00039177,14]
[354573373,1740579059517,-1014.94,0.00039177,14]
[354573374,1740579059526,-300.0,0.00039178,2]
[354573375,1740579059536,-525.04,0.00039203,2]
[354573376,1740579059546,-1882.24153512,0.00039239,2]
[354573377,1740579059555,-697.39264935,0.00039253,2]
[354573378,1740579059566,-150.0,0.00039305,2]
[354573379,1740579059576,-1741.9,0.00039321,14]
[354573380,1740579059585,-2546.12,0.00039321,14]
[354573381,1740579059595,-937.0,0.00039321,7]
[354573382,1740579059605,-1665.48,0.00039321,14]
[354573383,1740579059614,-1924.26,0.00039321,14]
[354573384,1740579059623,-1706.48,0.00039321,14]
[354573385,1740579059633,-1367.39,0.00039321,14]
[354573386,1740579059642,-1305.398709,0.00039321,14]
[354573387,1740579059653,-2092.61,0.00039321,2]
[354573388,1740579059663,-1628.36,0.00039321,14]
[354573389,1740579059673,-1427.72,0.00039321,14]
[354573390,1740579059682,-2164.35,0.00039321,14]
[354573391,1740579059691,-1702.04,0.00039321,14]
[354573392,1740579059701,-2419.07,0.00039321,14]
[354573393,1740579059710,-1249.89,0.00039321,14]
[354573394,1740579059719,-2364.22,0.00039321,14]
[354573395,1740579059728,-1644.73,0.00039321,14]
[354573396,1740579059738,-2453.57,0.00039321,14]
[354573397,1740579059747,-2845.99,0.00039321,14]
[354573398,1740579059756,-10194.41,0.00039321,14]
[354573399,1740579059766,-500.0,0.00039321,14]
[354573400,1740579059775,-5669.11,0.00039321,14]
[354573401,1740579059784,-2373.2,0.00039321,14]
[354573402,1740579059794,-2458.21,0.00039321,14]
[354573403,1740579059803,-1214.82,0.00039321,14]
[354573404,1740579059812,-2584.33,0.00039321,14]
[354573405,1740579059823,-2136.62,0.00039321,14]
[354573406,1740579059833,-2800.15,0.00039321,14]
[354573407,1740579059843,-1891.52,0.00039321,14]
[354573408,1740579059852,-1319.55,0.00039321,14]
[354573409,1740579059861,-500.0,0.00039321,14]
[354573410,1740579059870,-4907.13,0.00039321,14]
[354573411,1740579059880,-1669.57,0.00039321,14]
[354573412,1740579059890,-1022.16,0.00039321,14]
[354573413,1740579059899,-1461.24,0.00039321,14]
[354573414,1740579059908,-2876.07,0.00039321,14]
[354573415,1740579059917,-500.0,0.00039321,14]
[354573416,1740579059927,-4053.62,0.00039321,14]
[354573417,1740579059936,-500.0,0.00039321,14]
[354573418,1740579059945,-2756.34,0.00039321,14]
[354573419,1740579059954,-8461.68,0.00039321,14]
[354573420,1740579059963,-3747.11,0.00039321,14]
[354573421,1740579059973,-1513.27,0.00039321,14]
[354573422,1740579059982,-546.54,0.00039321,14]
[354573423,1740579059991,-500.0,0.00039321,14]
[354573424,1740579060000,-1953.59,0.00039321,14]
[354573425,1740579060009,-1081.18,0.00039321,14]
[354573426,1740579060019,-610.31,0.00039321,14]
[354573427,1740579060028,-3730.81,0.00039321,14]
[354573428,1740579060037,-1118.72,0.00039321,14]
[354573429,1740579060047,-1078.68,0.00039321,14]
[354573430,1740579060057,-1235.06,0.00039321,14]
[354573431,1740579060070,-1173.72,0.00039321,14]
[354573432,1740579060080,-3356.85,0.00039321,14]
[354573433,1740579060089,-3909.95,0.00039321,14]
[354573434,1740579060099,-2504.14,0.00039321,14]
[354573435,1740579060108,-1471.03,0.00039321,14]
[354573436,1740579060118,-3435.84,0.00039321,14]
[354573437,1740579060127,-878.01,0.00039321,14]
[354573438,1740579060136,-617.72873584,0.00039349,2]
[354573439,1740579060149,-184.94530656,0.0003935,2]
[354573440,1740579060159,-197.42863502,0.0003935,8]
[354573441,1740579060168,-1882.24153512,0.00039403,2]
[354573442,1740579060178,-329.16887927,0.00039435,2]
[354573443,1740579060187,-697.39264935,0.00039436,2]
[354573444,1740579060198,-500.0,0.00039447,14]
[354573445,1740579060207,-500.0,0.00039447,14]
[354573446,1740579060217,-608.73,0.00039447,14]
[354573447,1740579060228,-500.0,0.00039447,14]
[354573448,1740579060237,-500.0,0.00039447,14]
[354573449,1740579060246,-500.0,0.00039447,14]
[354573450,1740579060256,-500.0,0.00039447,14]
[354573451,1740579060265,-500.0,0.00039447,14]
[354573452,1740579060274,-500.0,0.00039447,14]
[354573453,1740579060284,-920.77,0.00039447,14]
[354573454,1740579060294,-1222.03,0.00039447,14]
[354573455,1740579060304,-500.0,0.00039447,14]
[354573456,1740579060317,-765.25,0.00039447,14]
[354573457,1740579060331,-500.0,0.00039447,14]
[354573458,1740579060340,-500.0,0.00039447,14]
[354573459,1740579060350,-500.0,0.00039447,14]
[354573460,1740579060359,-527.94,0.00039447,14]
[354573461,1740579060369,-796.19,0.00039447,14]
[354573462,1740579060378,-528.52,0.00039447,14]
[354573463,1740579060387,-641.57,0.00039447,14]
[354573464,1740579060396,-830.07,0.00039447,14]
[354573465,1740579060406,-702.66,0.00039447,14]
[354573466,1740579060416,-513.17,0.00039447,14]
[354573467,1740579060424,-612.24,0.00039447,14]
[354573468,1740579060433,-500.0,0.00039447,14]
[354573469,1740579060443,-500.0,0.00039447,14]
[354573470,1740579060453,-536.81,0.00039447,14]
[354573471,1740579060462,-988.12,0.00039447,14]
[354573472,1740579060472,-500.0,0.00039447,14]
[354573473,1740579060481,-500.0,0.00039447,14]
[354573474,1740579060490,-500.0,0.00039447,14]
[354573475,1740579060499,-500.0,0.00039447,14]
[354573476,1740579060508,-500.0,0.00039447,14]
[354573477,1740579060519,-824.39,0.00039447,14]
[354573478,1740579060528,-598.8,0.00039447,14]
[354573479,1740579060537,-578.13,0.00039447,14]
[354573480,1740579060546,-500.0,0.00039447,14]
[354573481,1740579060556,-500.0,0.00039447,14]
[354573482,1740579060568,-788.51,0.00039447,14]
[354573483,1740579060577,-516.45,0.00039447,14]
[354573484,1740579060586,-500.0,0.00039447,14]
[354573485,1740579060595,-917.08,0.00039447,14]
[354573486,1740579060603,-500.0,0.00039447,14]
[354573487,1740579060612,-500.0,0.00039447,14]
[354573488,1740579060621,-500.0,0.00039447,14]
[354573489,1740579060630,-795.74,0.00039447,14]
[354573490,1740579060639,-500.0,0.00039447,14]
[354573491,1740579060649,-766.94,0.00039448,14]
[354573492,1740579060658,-526.99,0.00039448,14]
[354573493,1740579060667,-500.0,0.00039448,14]
[354573494,1740579060676,-500.0,0.00039448,14]
[354573495,1740579060686,-877.52,0.00039448,14]
[354573496,1740579060695,-500.0,0.00039448,14]
[354573497,1740579060704,-679.36,0.00039448,14]
[354573498,1740579060713,-675.96,0.00039448,14]
[354573499,1740579060722,-500.0,0.00039448,14]
[354573500,1740579060731,-1354.66,0.00039448,14]
[354573501,1740579060739,-500.0,0.00039448,14]
[354573502,1740579060748,-500.0,0.00039448,14]
[354573503,1740579060757,-800.36,0.00039448,14]
[354573504,1740579060767,-500.0,0.00039448,14]
[354573505,1740579060775,-541.12,0.00039448,14]
[354573506,1740579060784,-1236.59,0.00039448,14]
[354573507,1740579060793,-752.34,0.00039448,14]
[354573508,1740579060802,-749.56,0.00039448,14]
[354573509,1740579060811,-500.0,0.00039448,14]
[354573510,1740579060824,-743.4,0.00039448,14]
[354573511,1740579060833,-829.28,0.00039448,14]
[354573512,1740579060841,-535.43,0.00039448,14]
[354573513,1740579060850,-500.0,0.00039448,14]
[354573514,1740579060859,-1003.13,0.00039448,14]
[354573515,1740579060868,-500.0,0.00039448,14]
[354573516,1740579060878,-714.62,0.00039448,14]
[354573517,1740579060887,-500.0,0.00039448,14]
[354573518,1740579060896,-500.0,0.00039448,14]
[354573519,1740579060906,-500.0,0.00039448,14]
[354573520,1740579060915,-500.0,0.00039448,14]
[354573521,1740579060924,-416.14006757,0.00039448,14]
[354573522,1740579060933,-719.56,0.00039448,14]
[354573523,1740579060942,-878.0,0.00039448,14]
[354573524,1740579060951,-500.0,0.00039448,14]
[354573525,1740579060960,-997.99,0.00039448,14]
[354573526,1740579060969,-500.0,0.00039448,14]
[354573527,1740579060978,-596.86,0.00039448,14]
[354573528,1740579060987,-500.0,0.00039448,14]
[354573529,1740579060996,-585.85,0.00039448,14]
[354573530,1740579061005,-500.0,0.00039448,14]
[354573531,1740579061014,-500.0,0.00039448,14]
[354573532,1740579061023,-500.0,0.00039448,14]
[354573533,1740579061032,-1171.13,0.00039448,14]
[354573534,1740579061042,-500.0,0.00039448,14]
[354573535,1740579061051,-1838.13,0.00039448,14]
[354573536,1740579061060,-741.53,0.00039448,14]
[354573537,1740579061073,-500.0,0.00039448,14]
[354573538,1740579061082,-564.06,0.00039448,14]
[354573539,1740579061091,-500.0,0.00039448,14]
[354573540,1740579061100,-509.73,0.00039448,14]
[354573541,1740579061109,-937.22,0.00039448,14]
[354573542,1740579061118,-909.62,0.00039448,14]
[354573543,1740579061127,-830.44,0.00039448,14]
[354573544,1740579061136,-500.0,0.00039448,14]
[354573545,1740579061148,-621.68,0.00039448,14]
[354573546,1740579061157,-500.0,0.00039448,14]
[354573547,1740579061172,-1599.87,0.00039448,14]
[354573548,1740579061181,-734.05,0.00039448,14]
[354573549,1740579061191,-665.23,0.00039448,14]
[354573550,1740579061200,-500.0,0.00039448,14]
[354573551,1740579061210,-578.81,0.00039448,14]
[354573552,1740579061219,-500.0,0.00039448,14]
[354573553,1740579061229,-500.0,0.00039448,14]
[354573554,1740579061239,-500.0,0.00039448,14]
[354573555,1740579061247,-529.08,0.00039448,14]
[354573556,1740579061256,-500.0,0.00039448,14]
[354573557,1740579061265,-810.96,0.00039448,14]
[354573558,1740579061274,-500.0,0.00039448,14]
[354573559,1740579061283,-486.36,0.00039448,14]
[354573560,1740579061292,-606.51,0.00039448,14]
[354573561,1740579061301,-663.25,0.00039448,14]
[354573562,1740579061311,-711.69,0.00039448,14]
[354573563,1740579061326,-714.88,0.00039448,14]
[354573564,1740579061335,-836.72,0.00039448,14]
[354573565,1740579061344,-500.0,0.00039448,14]
[354573566,1740579061353,-500.0,0.00039448,14]
[354573567,1740579061363,-500.0,0.00039448,14]
[354573568,1740579061372,-1203.4,0.00039448,14]
[354573569,1740579061381,-1188.82,0.00039448,14]
[354573570,1740579061390,-785.44,0.00039448,14]
[354573571,1740579061399,-500.0,0.00039448,14]
[354573572,1740579061409,-727.14,0.00039448,14]
[354573573,1740579061419,-989.7,0.00039448,14]
[354573574,1740579061428,-500.0,0.00039448,14]
[354573575,1740579061437,-1157.19,0.00039448,14]
[354573576,1740579061447,-725.63,0.00039448,14]
[354573577,1740579061457,-500.0,0.00039448,14]
[354573578,1740579061466,-1380.46,0.00039448,14]
[354573579,1740579061476,-828.64,0.00039448,14]
[354573580,1740579061485,-1383.0,0.00039448,14]
[354573581,1740579061495,-700.6,0.00039448,14]
[354573582,1740579061505,-909.32,0.00039448,14]
[354573583,1740579061515,-500.0,0.00039448,14]
[354573584,1740579061524,-2364.77,0.00039448,14]
[354573585,1740579061533,-908.01,0.00039448,14]
[354573586,1740579061660,-588.95,0.00039448,14]
[354573587,1740579061670,-637.07,0.00039448,14]
[354573588,1740579061679,-500.0,0.00039448,14]
[354573589,1740579061688,-2266.37,0.00039448,14]
[354573590,1740579061697,-500.0,0.00039448,14]
[354573591,1740579061707,-1635.54,0.00039448,14]
[354573592,1740579061716,-500.0,0.00039448,14]
[354573593,1740579061725,-500.0,0.00039448,14]
[354573594,1740579061735,-1365.36,0.00039448,14]
[354573595,1740579061744,-500.0,0.00039448,14]
[354573596,1740579061753,-1335.32,0.00039448,14]
[354573597,1740579061762,-517.55,0.00039448,14]
[354573598,1740579061771,-1311.4,0.00039448,14]
[354573599,1740579061780,-500.0,0.00039448,14]
[354573600,1740579061789,-500.0,0.00039448,14]
[354573601,1740579061798,-1772.27,0.00039448,14]
[354573602,1740579061807,-712.34,0.00039448,14]
[354573603,1740579061819,-853.47,0.00039448,14]
[354573604,1740579061828,-553.6,0.00039448,14]
[354573605,1740579061837,-2827.92,0.00039448,14]
[354573606,1740579061847,-516.94,0.00039448,14]
[354573607,1740579061856,-664.49,0.00039448,14]
[354573608,1740579061866,-2665.37,0.00039448,14]
[354573609,1740579061876,-979.89,0.00039448,14]
[354573610,1740579061886,-500.0,0.00039448,14]
[354573611,1740579061896,-2926.58,0.00039448,14]
[354573612,1740579061905,-584.65,0.00039448,14]
[354573613,1740579061915,-2222.36,0.00039448,14]
[354573614,1740579061924,-6058.44,0.00039448,14]
[354573615,1740579061934,-500.0,0.00039448,14]
[354573616,1740579061943,-623.07,0.00039448,14]
[354573617,1740579061952,-712.37,0.00039448,14]
[354573618,1740579061962,-1063.89,0.00039448,14]
[354573619,1740579061972,-632.18,0.00039448,14]
[354573620,1740579061981,-632.18,0.00039448,14]
[354573621,1740579061991,-1089.38,0.00039448,14]
[354573622,1740579062000,-1240.0,0.00039448,14]
[354573623,1740579062009,-1516.22,0.00039448,14]
[354573624,1740579062018,-500.0,0.00039448,14]
[354573625,1740579062027,-588.12,0.00039448,14]
[354573626,1740579062037,-995.99,0.00039448,14]
[354573627,1740579062051,-2222.97,0.00039448,14]
[354573628,1740579062069,-539.43,0.00039448,14]
[354573629,1740579062079,-500.0,0.00039448,14]
[354573630,1740579062089,-1250.99,0.00039448,14]
[354573631,1740579062098,-2764.98,0.00039448,14]
[354573632,1740579062107,-6267.3,0.00039448,14]
[354573633,1740579062116,-500.0,0.00039448,14]
[354573634,1740579062125,-3072.05,0.00039448,14]
[354573635,1740579062134,-1505.44,0.00039448,14]
[354573636,1740579062146,-510.48,0.00039448,14]
[354573637,1740579062156,-500.0,0.00039448,14]
[354573638,1740579062166,-1623.58,0.00039448,14]
[354573639,1740579062176,-4044.93,0.00039448,14]
[354573640,1740579062187,-937.49,0.00039448,14]
[354573641,1740579062196,-7622.02,0.00039448,14]
[354573642,1740579062205,-2756.53,0.00039448,14]
[354573643,1740579062217,-729.46,0.00039448,7]
[354573644,1740579062227,-559.12,0.00039448,14]
[354573645,1740579062236,-2829.82,0.00039448,14]
[354573646,1740579062245,-500.0,0.00039448,14]
[354573647,1740579062255,-575.61,0.00039448,14]
[354573648,1740579062264,-500.0,0.00039448,14]
[354573649,1740579062273,-1282.22,0.00039448,14]
[354573650,1740579062282,-555.19,0.00039448,14]
[354573651,1740579062291,-500.0,0.00039448,14]
[354573652,1740579062301,-1865.33,0.00039448,14]
[354573653,1740579062311,-2910.21,0.00039448,14]
[354573654,1740579062324,-8423.92,0.00039448,14]
[354573655,1740579062333,-1189.83,0.00039448,14]
[354573656,1740579062343,-500.0,0.00039448,14]
[354573657,1740579062353,-500.0,0.00039448,14]
[354573658,1740579062363,-500.0,0.00039448,14]
[354573659,1740579062372,-500.0,0.00039449,14]
[354573660,1740579062382,-500.0,0.00039449,14]
[354573661,1740579062391,-500.0,0.00039449,14]
[354573662,1740579062401,-677.02,0.00039449,14]
[354573663,1740579062411,-500.0,0.00039449,14]
[354573664,1740579062420,-802.45,0.00039449,14]
[354573665,1740579062429,-565.95,0.00039449,14]
[354573666,1740579062438,-512.53,0.00039449,14]
[354573667,1740579062448,-500.0,0.00039449,14]
[354573668,1740579062457,-500.0,0.00039449,14]
[354573669,1740579062467,-1168.82,0.00039449,14]
[354573670,1740579062476,-978.91,0.00039449,14]
[354573671,1740579062485,-500.0,0.00039449,14]
[354573672,1740579062495,-500.0,0.00039449,14]
[354573673,1740579062504,-500.0,0.00039449,14]
[354573674,1740579062513,-825.29,0.00039449,14]
[354573675,1740579062523,-500.0,0.00039449,14]
[354573676,1740579062532,-583.74,0.00039449,14]
[354573677,1740579062542,-500.0,0.00039449,14]
[354573678,1740579062551,-612.46,0.00039449,14]
[354573679,1740579062560,-572.91,0.00039449,14]
[354573680,1740579062572,-500.0,0.00039449,14]
[354573681,1740579062581,-755.97,0.00039449,14]
[354573682,1740579062590,-167.30836066,0.00039449,14]
[354573683,1740579062599,-500.0,0.00039449,14]
[354573684,1740579062609,-538.04,0.00039449,14]
[354573685,1740579062618,-500.0,0.00039449,14]
[354573686,1740579062628,-753.71,0.00039449,14]
[354573687,1740579062637,-651.66,0.00039449,14]
[354573688,1740579062646,-1026.57,0.00039449,14]
[354573689,1740579062655,-1020.87,0.00039449,14]
[354573690,1740579062664,-500.0,0.00039449,14]
[354573691,1740579062674,-500.0,0.00039449,14]
[354573692,1740579062685,-1007.43,0.00039449,14]
[354573693,1740579062696,-174.45273594,0.00039449,14]
[354573694,1740579062707,-1095.01,0.00039449,14]
[354573695,1740579062719,-910.66,0.00039449,14]
[354573696,1740579062728,-500.0,0.00039449,14]
[354573697,1740579062740,-500.0,0.00039449,14]
[354573698,1740579062751,-564.6,0.00039449,14]
[354573699,1740579062760,-768.03,0.00039449,14]
[354573700,1740579062769,-992.83,0.00039449,14]
[354573701,1740579062778,-993.3,0.00039449,14]
[354573702,1740579062788,-265.72306159,0.00039449,14]
[354573703,1740579062797,-500.0,0.00039449,14]
[354573704,1740579062806,-690.81,0.00039449,14]
[354573705,1740579062816,-500.0,0.00039449,14]
[354573706,1740579062827,-794.98,0.00039449,14]
[354573707,1740579062837,-625.49,0.00039449,14]
[354573708,1740579062846,-500.0,0.00039449,14]
[354573709,1740579062855,-500.89,0.00039449,14]
[354573710,1740579062865,-500.0,0.00039449,14]
[354573711,1740579062874,-500.0,0.00039449,14]
[354573712,1740579062884,-591.01,0.00039449,14]
[354573713,1740579062893,-500.0,0.00039449,14]
[354573714,1740579062902,-500.0,0.00039449,14]